lending/lending_fUSD_20240112
["ID","MTS","AMOUNT","RATE_DAILY","PERIOD"]
[311413923,1705078273929,-2787.39,0.00036712,4]
[311413924,1705078273939,-434.37387663,0.00036712,4]
[311413925,1705078273949,-665.67,0.00036712,4]
[311413926,1705078273960,-176.19586847,0.00036712,4]
[311413927,1705078273970,-500.0,0.00036712,4]
[311413928,1705078273980,-500.0,0.00036712,4]
[311413929,1705078273991,-500.0,0.00036712,4]
[311413930,1705078274002,-4677.32,0.00036712,4]
[311413931,1705078274012,-500.0,0.00036712,4]
[311413932,1705078274023,-500.0,0.00036712,4]
[311413933,1705078274033,-1033.68,0.00036712,4]
[311413934,1705078274043,-989.52,0.00036712,4]
[311413935,1705078274054,-500.0,0.00036712,4]
[311413936,1705078274064,-554.11,0.00036712,4]
[311413937,1705078274074,-500.0,0.00036712,4]
[311413938,1705078274084,-533.84473901,0.00036712,4]
[311413939,1705078274094,-500.0,0.00036712,4]
[311413940,1705078274105,-500.0,0.00036712,4]
[311413941,1705078274116,-500.0,0.00036712,4]
[311413942,1705078274128,-1450.88,0.00036712,4]
[311413943,1705078274139,-500.0,0.00036712,4]
[311413944,1705078274151,-500.0,0.00036712,4]
[311413945,1705078274165,-500.0,0.00036712,4]
[311413946,1705078274176,-500.0,0.00036712,4]
[311413947,1705078274188,-500.0,0.00036712,4]
[311413948,1705078274199,-500.0,0.00036712,4]
[311413949,1705078274209,-986.25,0.00036712,4]
[311413950,1705078274220,-500.0,0.00036712,4]
[311413951,1705078274232,-500.0,0.00036712,4]
[311413952,1705078274242,-500.0,0.00036712,4]
[311413953,1705078274252,-500.0,0.00036712,4]
[311413954,1705078274265,-500.0,0.00036712,4]
[311413955,1705078274276,-500.0,0.00036712,4]
[311413956,1705078274286,-5168.02,0.00036712,4]
[311413957,1705078274303,-1229.05,0.00036712,4]
[311413958,1705078274314,-500.0,0.00036712,4]
[311413959,1705078274327,-500.0,0.00036712,4]
[311413960,1705078274338,-500.0,0.00036712,4]
[311413961,1705078274350,-500.0,0.00036712,4]
[311413962,1705078274362,-719.31,0.00036712,4]
[311413963,1705078274376,-500.0,0.00036712,4]
[311413964,1705078274391,-799.83,0.00036712,4]
[311413965,1705078274633,-510.47740772,0.00036712,4]
[311413966,1705078274643,-691.11,0.00036712,4]
[311413967,1705078274653,-500.0,0.00036712,4]
[311413968,1705078274663,-500.0,0.00036712,4]
[311413969,1705078274673,-500.0,0.00036712,4]
[311413970,1705078274683,-609.83,0.00036712,4]
[311413971,1705078274692,-500.0,0.00036712,4]
[311413972,1705078274701,-500.0,0.00036712,4]
[311413973,1705078274711,-500.0,0.00036712,4]
[311413974,1705078274721,-500.0,0.00036712,4]
[311413975,1705078274730,-2978.71,0.00036712,4]
[311413976,1705078274739,-500.0,0.00036712,4]
[311413977,1705078274749,-500.0,0.00036712,4]
[311413978,1705078274758,-500.0,0.00036712,4]
[311413979,1705078274768,-500.0,0.00036712,4]
[311413980,1705078274782,-500.0,0.00036712,4]
[311413981,1705078274792,-589.54,0.00036712,4]
[311413982,1705078274801,-500.0,0.00036712,4]
[311413983,1705078274811,-487.67313501,0.00036712,4]
[311413984,1705078274821,-510.43,0.00036712,4]
[311413985,1705078274830,-500.0,0.00036712,4]
[311413986,1705078274840,-1048.49,0.00036712,4]
[311413987,1705078274849,-500.0,0.00036712,4]
[311413988,1705078274859,-989.98,0.00036712,4]
[311413989,1705078274869,-500.0,0.00036712,4]
[311413990,1705078274879,-515.37,0.00036712,4]
[311413991,1705078274888,-500.0,0.00036712,4]
[311413992,1705078274898,-778.99,0.00036712,4]
[311413993,1705078274907,-500.0,0.00036712,4]
[311413994,1705078274917,-500.0,0.00036712,4]
[311413995,1705078274926,-500.0,0.00036712,4]
[311413996,1705078274936,-584.22,0.00036712,4]
[311413997,1705078274946,-500.0,0.00036712,4]
[311413998,1705078274955,-500.0,0.00036712,4]
[311413999,1705078274965,-500.0,0.00036712,4]
[311414000,1705078274974,-500.0,0.00036712,4]
[311414001,1705078274984,-500.0,0.00036712,4]
[311414002,1705078274994,-500.0,0.00036712,4]
[311414003,1705078275004,-500.0,0.00036712,4]
[311414004,1705078275014,-500.0,0.00036712,5]
[311414005,1705078275024,-500.0,0.00036712,4]
[311414006,1705078275033,-2071.89,0.00036712,4]
[311414007,1705078275043,-500.0,0.00036712,4]
[311414008,1705078275053,-610.37669038,0.00036712,4]
[311414009,1705078275063,-500.0,0.00036712,4]
[311414010,1705078275073,-500.0,0.00036712,4]
[311414011,1705078275082,-500.0,0.00036712,4]
[311414012,1705078275092,-1972.66,0.00036712,4]
[311414013,1705078275103,-1209.09,0.00036712,4]
[311414014,1705078275114,-500.0,0.00036712,4]
[311414015,1705078275127,-3109.86,0.00036712,4]
[311414016,1705078275138,-500.0,0.00036712,4]
[311414017,1705078275150,-500.0,0.00036712,4]
[311414018,1705078275160,-500.0,0.00036712,4]
[311414019,1705078275170,-500.0,0.00036712,4]
[311414020,1705078275182,-500.0,0.00036712,4]
[311414021,1705078275192,-500.0,0.00036712,4]
[311414022,1705078275204,-500.0,0.00036712,4]
[311414023,1705078275214,-1521.97,0.00036712,4]
[311414024,1705078275226,-500.0,0.00036712,4]
[311414025,1705078275236,-500.0,0.00036712,4]
[311414026,1705078275247,-500.0,0.00036712,4]
[311414027,1705078275256,-500.0,0.00036712,4]
[311414028,1705078275266,-693.43,0.00036712,4]
[311414029,1705078275276,-500.0,0.00036712,4]
[311414030,1705078275288,-500.0,0.00036712,4]
[311414031,1705078275298,-500.0,0.00036712,4]
[311414032,1705078275308,-500.0,0.00036712,4]
[311414033,1705078275319,-500.0,0.00036712,4]
[311414034,1705078275329,-500.0,0.00036712,4]
[311414035,1705078275339,-500.0,0.00036712,4]
[311414036,1705078275348,-500.0,0.00036712,4]
[311414037,1705078275358,-500.0,0.00036712,4]
[311414038,1705078275368,-500.0,0.00036712,4]
[311414039,1705078275381,-500.0,0.00036712,4]
[311414040,1705078275391,-500.0,0.00036712,4]
[311414041,1705078275400,-500.0,0.00036712,5]
[311414042,1705078275410,-500.0,0.00036712,4]
[311414043,1705078275420,-500.0,0.00036712,4]
[311414044,1705078275429,-500.0,0.00036712,4]
[311414045,1705078275439,-500.0,0.00036712,4]
[311414046,1705078275448,-500.0,0.00036712,4]
[311414047,1705078275458,-500.0,0.00036712,4]
[311414048,1705078275468,-500.0,0.00036712,4]
[311414049,1705078275478,-500.0,0.00036712,4]
[311414050,1705078275487,-671.95,0.00036712,4]
[311414051,1705078275497,-14024.67514003,0.00036838,9]
[311414052,1705078275506,-196.67,0.00036986,4]
[311414053,1705078275515,-500.0,0.00036986,4]
[311414054,1705078275525,-500.0,0.00036986,4]
[311414055,1705078275534,-500.0,0.00036986,4]
[311414056,1705078275544,-611.01,0.00036986,4]
[311414057,1705078275553,-598.26,0.00036986,4]
[311414058,1705078275563,-343.5,0.00036986,4]
[311414059,1705078275573,-809.77,0.00036986,4]
[311414060,1705078275584,-513.31,0.00036986,4]
[311414061,1705078275594,-731.98,0.00036986,4]
[311414062,1705078275603,-198.09,0.00036986,4]
[311414063,1705078275613,-500.0,0.00036986,4]
[311414064,1705078275623,-500.0,0.00036986,4]
[311414065,1705078275632,-500.0,0.00036986,4]
[311414066,1705078275642,-500.0,0.00036986,4]
[311414067,1705078275652,-500.0,0.00036986,4]
[311414068,1705078275661,-500.0,0.00036986,4]
[311414069,1705078275671,-500.0,0.00036986,4]
[311414070,1705078275681,-500.0,0.00036986,4]
[311414071,1705078275690,-177.52,0.00036986,4]
[311414072,1705078275699,-244.62,0.00036986,4]
[311414073,1705078275709,-500.0,0.00036986,4]
[311414074,1705078275718,-500.0,0.00036986,4]
[311414075,1705078275728,-500.0,0.00036986,4]
[311414076,1705078275737,-500.0,0.00036986,4]
[311414077,1705078275748,-544.38,0.00036986,4]
[311414078,1705078275758,-277.75,0.00036986,4]
[311414079,1705078275767,-517.93,0.00036986,4]
[311414080,1705078275777,-500.0,0.00036986,4]
[311414081,1705078275787,-500.0,0.00036986,4]
[311414082,1705078275797,-500.0,0.00036986,4]
[311414083,1705078275807,-603.88,0.00036986,4]
[311414084,1705078275817,-590.15,0.00036986,4]
[311414085,1705078275826,-500.0,0.00036986,4]
[311414086,1705078275837,-500.0,0.00036986,4]
[311414087,1705078275846,-153.87,0.00036986,4]
[311414088,1705078275856,-500.0,0.00036986,4]
[311414089,1705078275865,-500.0,0.00036986,4]
[311414090,1705078275876,-500.0,0.00036986,4]
[311414091,1705078275886,-500.0,0.00036986,4]
[311414092,1705078275895,-286.4,0.00036986,4]
[311414093,1705078275905,-500.0,0.00036986,4]
[311414094,1705078275915,-217.68,0.00036986,4]
[311414095,1705078275925,-500.0,0.00036986,4]
[311414096,1705078275935,-500.0,0.00036986,4]
[311414097,1705078275944,-547.70596977,0.00036986,4]
[311414098,1705078275954,-500.0,0.00036986,4]
[311414099,1705078275964,-500.0,0.00036986,4]
[311414100,1705078275974,-500.0,0.00036986,4]
[311414101,1705078275984,-500.0,0.00036986,4]
[311414102,1705078275994,-500.0,0.00036986,4]
[311414103,1705078276004,-500.0,0.00036986,4]
[311414104,1705078276014,-175.05,0.00036986,4]
[311414105,1705078276023,-500.0,0.00036986,4]
[311414106,1705078276033,-399.8977742,0.00036986,4]
[311414107,1705078276044,-617.18,0.00036986,4]
[311414108,1705078276053,-500.0,0.00036986,4]
[311414109,1705078276062,-376.60502276,0.00036986,4]
[311414110,1705078276072,-294.27,0.00036986,4]
[311414111,1705078276081,-582.32,0.00036986,4]
[311414112,1705078276091,-500.0,0.00036986,4]
[311414113,1705078276100,-500.0,0.00036986,4]
[311414114,1705078276109,-500.0,0.00036986,4]
[311414115,1705078276119,-500.0,0.00036986,4]
[311414116,1705078276129,-500.0,0.00036986,4]
[311414117,1705078276150,-293.23,0.00036986,4]
[311414118,1705078276161,-610.82,0.00036986,4]
[311414119,1705078276172,-500.0,0.00036986,4]
[311414120,1705078276182,-361.58984141,0.00036986,4]
[311414121,1705078276191,-500.0,0.00036986,4]
[311414122,1705078276201,-500.0,0.00036986,4]
[311414123,1705078276211,-523.76,0.00036986,4]
[311414124,1705078276220,-500.0,0.00036986,4]
[311414125,1705078276230,-500.0,0.00036986,4]
[311414126,1705078276240,-645.36,0.00036986,4]
[311414127,1705078276250,-500.0,0.00036986,4]
[311414128,1705078276260,-640.24,0.00036986,4]
[311414129,1705078276270,-500.0,0.00036986,4]
[311414130,1705078276279,-500.0,0.00036986,4]
[311414131,1705078276291,-500.0,0.00036986,4]
[311414132,1705078276301,-500.0,0.00036986,4]
[311414133,1705078276313,-500.0,0.00036986,4]
[311414134,1705078276327,-500.0,0.00036986,4]
[311414135,1705078276338,-500.0,0.00036986,4]
[311414136,1705078276364,-404.18541714,0.00036986,4]
[311414137,1705078276388,-500.0,0.00036986,4]
[311414138,1705078276403,-500.0,0.00036986,4]
[311414139,1705078276416,-500.0,0.00036986,4]
[311414140,1705078276429,-506.47,0.00036986,4]
[311414141,1705078276443,-500.0,0.00036986,4]
[311414142,1705078276464,-500.0,0.00036986,4]
[311414143,1705078276474,-505.57,0.00036986,4]
[311414144,1705078276485,-500.0,0.00036986,4]
[311414145,1705078276495,-608.12,0.00036986,4]
[311414146,1705078276517,-500.0,0.00036986,4]
[311414147,1705078276547,-500.0,0.00036986,4]
[311414148,1705078276563,-642.71,0.00036986,4]
[311414149,1705078276586,-500.0,0.00036986,4]
[311414150,1705078276599,-503.85,0.00036986,4]
[311414151,1705078276610,-545.15,0.00036986,4]
[311414152,1705078276620,-500.0,0.00036986,4]
[311414153,1705078276639,-207.58163123,0.00036986,4]
[311414154,1705078276670,-500.0,0.00036986,4]
[311414155,1705078276681,-500.0,0.00036986,4]
[311414156,1705078276695,-500.0,0.00036986,4]
[311414157,1705078276705,-562.72917779,0.00036986,4]
[311414158,1705078276716,-500.0,0.00036986,4]
[311414159,1705078276726,-500.0,0.00036986,4]
[311414160,1705078276736,-500.0,0.00036986,4]
[311414161,1705078276764,-500.0,0.00036986,4]
[311414162,1705078276795,-500.0,0.00036986,4]
[311414163,1705078276808,-500.0,0.00036986,4]
[311414164,1705078276822,-931.55,0.00036986,4]
[311414165,1705078276832,-500.0,0.00036986,4]
[311414166,1705078276843,-500.0,0.00036986,4]
[311414167,1705078276853,-500.0,0.00036986,4]
[311414168,1705078276864,-1378.86,0.00036986,4]
[311414169,1705078276877,-500.0,0.00036986,4]
[311414170,1705078276887,-704.26,0.00036986,4]
[311414171,1705078276898,-500.0,0.00036986,4]
[311414172,1705078276909,-500.0,0.00036986,4]
[311414173,1705078276919,-500.0,0.00036986,4]
[311414174,1705078276929,-1855.35,0.00036986,4]
[311414175,1705078276940,-500.0,0.00036986,4]
[311414176,1705078276950,-500.0,0.00036986,4]
[311414177,1705078276960,-500.0,0.00036986,4]
[311414178,1705078276972,-500.0,0.00036986,4]
[311414179,1705078276982,-500.0,0.00036986,4]
[311414180,1705078276992,-633.89,0.00036986,4]
[311414181,1705078277002,-500.0,0.00036986,4]
[311414182,1705078277012,-500.0,0.00036986,4]
[311414183,1705078277022,-500.0,0.00036986,4]
[311414184,1705078277032,-500.0,0.00036986,4]
[311414185,1705078277042,-500.0,0.00036986,4]
[311414186,1705078277053,-500.0,0.00036986,4]
[311414187,1705078277063,-500.0,0.00036986,4]
[311414188,1705078277074,-500.0,0.00036986,4]
[311414189,1705078277084,-425.51542284,0.00036986,4]
[311414190,1705078277094,-500.0,0.00036986,4]
[311414191,1705078277106,-500.0,0.00036986,4]
[311414192,1705078277115,-532.55,0.00036986,4]
[311414193,1705078277127,-500.0,0.00036986,4]
[311414194,1705078277138,-500.0,0.00036986,4]
[311414195,1705078277150,-549.38,0.00036986,4]
[311414196,1705078277160,-500.0,0.00036986,4]
[311414197,1705078277169,-500.0,0.00036986,4]
[311414198,1705078277180,-500.0,0.00036986,4]
[311414199,1705078277189,-500.0,0.00036986,4]
[311414200,1705078277198,-500.0,0.00036986,4]
[311414201,1705078277208,-500.0,0.00036986,4]
[311414202,1705078277218,-500.0,0.00036986,4]
[311414203,1705078277229,-500.0,0.00036986,4]
[311414204,1705078277239,-500.0,0.00036986,4]
[311414205,1705078277249,-650.36,0.00036986,4]
[311414206,1705078277259,-344.77682191,0.00036986,4]
[311414207,1705078277269,-500.0,0.00036986,4]
[311414208,1705078277278,-1004.26,0.00036986,4]
[311414209,1705078277289,-644.9,0.00036986,4]
[311414210,1705078277298,-500.0,0.00036986,4]
[311414211,1705078277308,-500.0,0.00036986,4]
[311414212,1705078277318,-500.0,0.00036986,4]
[311414213,1705078277327,-500.0,0.00036986,4]
[311414214,1705078277337,-500.0,0.00036986,4]
[311414215,1705078277346,-513.37,0.00036986,4]
[311414216,1705078277356,-500.0,0.00036986,4]
[311414217,1705078277365,-500.0,0.00036986,4]
[311414218,1705078277377,-500.0,0.00036986,4]
[311414219,1705078277387,-1035.58,0.00036986,4]
[311414220,1705078277397,-500.0,0.00036986,4]
[311414221,1705078277406,-500.0,0.00036986,4]
[311414222,1705078277416,-500.0,0.00036986,4]
[311414223,1705078277425,-500.0,0.00036986,4]
[311414224,1705078277435,-682.31,0.00036986,4]
[311414225,1705078277445,-500.0,0.00036986,4]
[311414226,1705078277455,-628.22,0.00036986,4]
[311414227,1705078277464,-500.0,0.00036986,4]
[311414228,1705078277474,-500.0,0.00036986,4]
[311414229,1705078277484,-655.11,0.00036986,4]
[311414230,1705078277493,-500.0,0.00036986,4]
[311414231,1705078277503,-500.0,0.00036986,4]
[311414232,1705078277512,-500.0,0.00036986,4]
[311414233,1705078277522,-500.0,0.00036986,4]
[311414234,1705078277532,-305.27096635,0.00036986,4]
[311414235,1705078277542,-500.0,0.00036986,4]
[311414236,1705078277553,-500.0,0.00036986,4]
[311414237,1705078277563,-500.0,0.00036986,4]
[311414238,1705078277573,-500.0,0.00036986,4]
[311414239,1705078277582,-500.0,0.00036986,4]
[311414240,1705078277592,-500.0,0.00036986,4]
[311414241,1705078277601,-500.0,0.00036986,4]
[311414242,1705078277611,-941.05,0.00036986,4]
[311414243,1705078277621,-500.0,0.00036986,4]
[311414244,1705078277633,-500.0,0.00036986,4]
[311414245,1705078277642,-532.17,0.00036986,4]
[311414246,1705078277652,-500.0,0.00036986,4]
[311414247,1705078277662,-500.0,0.00036986,4]
[311414248,1705078277672,-1133.84,0.00036986,4]
[311414249,1705078277681,-500.0,0.00036986,4]
[311414250,1705078277691,-500.0,0.00036986,4]
[311414251,1705078277701,-500.0,0.00036986,4]
[311414252,1705078277710,-500.0,0.00036986,4]
[311414253,1705078277720,-500.0,0.00036986,4]
[311414254,1705078277730,-500.0,0.00036986,4]
[311414255,1705078277739,-500.0,0.00036986,4]
[311414256,1705078277749,-500.0,0.00036986,4]
[311414257,1705078277759,-500.0,0.00036986,4]
[311414258,1705078277769,-500.0,0.00036986,4]
[311414259,1705078277780,-2787.39,0.00036986,4]
[311414260,1705078277790,-665.67,0.00036986,4]
[311414261,1705078277800,-500.0,0.00036986,4]
[311414262,1705078277810,-500.0,0.00036986,4]
[311414263,1705078277819,-4677.32,0.00036986,4]
[311414264,1705078277829,-500.0,0.00036986,4]
[311414265,1705078277839,-500.0,0.00036986,4]
[311414266,1705078277848,-1033.68,0.00036986,4]
[311414267,1705078277858,-989.52,0.00036986,4]
[311414268,1705078277867,-500.0,0.00036986,4]
[311414269,1705078277879,-554.11,0.00036986,4]
[311414270,1705078277888,-232.84,0.00036986,4]
[311414271,1705078277898,-500.0,0.00036986,4]
[311414272,1705078277907,-500.0,0.00036986,4]
[311414273,1705078277917,-500.0,0.00036986,4]
[311414274,1705078277927,-1450.88,0.00036986,4]
[311414275,1705078277937,-500.0,0.00036986,4]
[311414276,1705078277948,-500.0,0.00036986,4]
[311414277,1705078277958,-500.0,0.00036986,4]
[311414278,1705078277969,-500.0,0.00036986,4]
[311414279,1705078277979,-500.0,0.00036986,4]
[311414280,1705078277990,-986.25,0.00036986,4]
[311414281,1705078278000,-500.0,0.00036986,4]
[311414282,1705078278010,-500.0,0.00036986,4]
[311414283,1705078278020,-500.0,0.00036986,4]
[311414284,1705078278030,-500.0,0.00036986,4]
[311414285,1705078278039,-500.0,0.00036986,4]
[311414286,1705078278049,-500.0,0.00036986,4]
[311414287,1705078278058,-500.0,0.00036986,4]
[311414288,1705078278068,-5168.02,0.00036986,4]
[311414289,1705078278077,-1229.05,0.00036986,4]
[311414290,1705078278087,-500.0,0.00036986,4]
[311414291,1705078278096,-500.0,0.00036986,4]
[311414292,1705078278106,-487.17446944,0.00036986,4]
[311414293,1705078278116,-719.31,0.00036986,4]
[311414294,1705078278127,-235.30055167,0.00036986,4]
[311414295,1705078278137,-799.83,0.00036986,4]
[311414296,1705078278148,-433.90949589,0.00036986,4]
[311414297,1705078278182,-257.20050411,0.00036986,4]
[311414298,1705078278192,-577.98,0.00036986,4]
[311414299,1705078278202,-500.0,0.00036986,4]
[311414300,1705078278211,-500.0,0.00036986,4]
[311414301,1705078278221,-609.83,0.00036986,4]
[311414302,1705078278231,-500.0,0.00036986,4]
[311414303,1705078278240,-500.0,0.00036986,4]
[311414304,1705078278250,-500.0,0.00036986,4]
[311414305,1705078278259,-500.0,0.00036986,4]
[311414306,1705078278269,-2978.71,0.00036986,4]
[311414307,1705078278278,-500.0,0.00036986,4]
[311414308,1705078278288,-500.0,0.00036986,4]
[311414309,1705078278297,-500.0,0.00036986,4]
[311414310,1705078278307,-500.0,0.00036986,4]
[311414311,1705078278316,-500.0,0.00036986,4]
[311414312,1705078278326,-589.54,0.00036986,4]
[311414313,1705078278335,-500.0,0.00036986,4]
[311414314,1705078278344,-510.43,0.00036986,4]
[311414315,1705078278354,-500.0,0.00036986,4]
[311414316,1705078278362,-1048.49,0.00036986,4]
[311414317,1705078278373,-500.0,0.00036986,4]
[311414318,1705078278385,-989.98,0.00036986,4]
[311414319,1705078278395,-500.0,0.00036986,4]
[311414320,1705078278404,-515.37,0.00036986,4]
[311414321,1705078278414,-500.0,0.00036986,4]
[311414322,1705078278424,-778.99,0.00036986,4]
[311414323,1705078278434,-500.0,0.00036986,4]
[311414324,1705078278444,-500.0,0.00036986,4]
[311414325,1705078278454,-500.0,0.00036986,4]
[311414326,1705078278464,-584.22,0.00036986,4]
[311414327,1705078278474,-186.0773342,0.00036986,4]
[311414328,1705078278484,-287.58090917,0.00036986,4]
[311414329,1705078278493,-500.0,0.00036986,4]
[311414330,1705078278503,-492.03438797,0.00036986,4]
[311414331,1705078278513,-500.0,0.00036986,4]
[311414332,1705078278523,-500.0,0.00036986,4]
[311414333,1705078278533,-585.13011625,0.00036986,4]
[311414334,1705078278542,-209.5,0.00036986,5]
[311414335,1705078278552,-2071.89,0.00036986,4]
[311414336,1705078278562,-500.0,0.00036986,4]
[311414337,1705078278572,-500.0,0.00036986,4]
[311414338,1705078278582,-500.0,0.00036986,4]
[311414339,1705078278592,-500.0,0.00036986,4]
[311414340,1705078278602,-500.0,0.00036986,4]
[311414341,1705078278612,-1972.66,0.00036986,4]
[311414342,1705078278623,-1209.09,0.00036986,4]
[311414343,1705078278636,-500.0,0.00036986,4]
[311414344,1705078278646,-3109.86,0.00036986,4]
[311414345,1705078278656,-500.0,0.00036986,4]
[311414346,1705078278666,-500.0,0.00036986,4]
[311414347,1705078278676,-500.0,0.00036986,4]
[311414348,1705078278686,-500.0,0.00036986,4]
[311414349,1705078278696,-500.0,0.00036986,4]
[311414350,1705078278707,-500.0,0.00036986,4]
[311414351,1705078278716,-1521.97,0.00036986,4]
[311414352,1705078278727,-500.0,0.00036986,4]
[311414353,1705078278737,-500.0,0.00036986,4]
[311414354,1705078278748,-500.0,0.00036986,4]
[311414355,1705078278757,-500.0,0.00036986,4]
[311414356,1705078278768,-693.43,0.00036986,4]
[311414357,1705078278778,-500.0,0.00036986,4]
[311414358,1705078278788,-500.0,0.00036986,4]
[311414359,1705078278798,-500.0,0.00036986,4]
[311414360,1705078278808,-500.0,0.00036986,4]
[311414361,1705078278818,-500.0,0.00036986,4]
[311414362,1705078278829,-500.0,0.00036986,4]
[311414363,1705078278840,-500.0,0.00036986,4]
[311414364,1705078278850,-500.0,0.00036986,4]
[311414365,1705078279077,-500.0,0.00036986,4]
[311414366,1705078279087,-500.0,0.00036986,4]
[311414367,1705078279097,-500.0,0.00036986,4]
[311414368,1705078279106,-500.0,0.00036986,4]
[311414369,1705078279116,-500.0,0.00036986,5]
[311414370,1705078279331,-500.0,0.00036986,4]
[311414371,1705078279343,-500.0,0.00036986,4]
[311414372,1705078279353,-500.0,0.00036986,4]
[311414373,1705078279363,-500.0,0.00036986,4]
[311414374,1705078279373,-511.99,0.00036986,4]
[311414375,1705078279385,-500.0,0.00036986,4]
[311414376,1705078279395,-500.0,0.00036986,4]
[311414377,1705078279404,-500.0,0.00036986,4]
[311414378,1705078279413,-671.95,0.00036986,4]
[311414379,1705078279423,-309.52299924,0.00037,4]
[311414380,1705078279433,-5000.0,0.00037,3]
[311414381,1705078279442,-190.88642504,0.00037,4]
[311414382,1705078279452,-150.0,0.00037,26]
[311414383,1705078279462,-151.75212932,0.00037124,2]
[311414384,1705078279472,-764.07481746,0.0003724,4]
[311414385,1705078279482,-456.88912715,0.0003726,4]
[311414386,1705078279492,-500.0,0.0003726,4]
[311414387,1705078279502,-362.82463351,0.0003726,4]
[311414388,1705078279512,-809.77,0.0003726,4]
[311414389,1705078279521,-731.98,0.0003726,4]
[311414390,1705078279530,-500.0,0.0003726,4]
[311414391,1705078279541,-321.68,0.0003726,4]
[311414392,1705078279551,-500.0,0.0003726,4]
[311414393,1705078279561,-500.0,0.0003726,4]
[311414394,1705078279572,-500.0,0.0003726,4]
[311414395,1705078279582,-500.0,0.0003726,4]
[311414396,1705078279592,-500.0,0.0003726,4]
[311414397,1705078279602,-500.0,0.0003726,4]
[311414398,1705078279612,-251.69,0.0003726,4]
[311414399,1705078279622,-500.0,0.0003726,4]
[311414400,1705078279633,-189.5,0.0003726,4]
[311414401,1705078279642,-500.0,0.0003726,4]
[311414402,1705078279652,-500.0,0.0003726,4]
[311414403,1705078279661,-500.0,0.0003726,4]
[311414404,1705078279671,-611.07,0.0003726,4]
[311414405,1705078279681,-500.0,0.0003726,4]
[311414406,1705078279691,-492.85,0.0003726,4]
[311414407,1705078279701,-611.8,0.0003726,4]
[311414408,1705078279710,-632.35112279,0.0003726,4]
[311414409,1705078279720,-500.0,0.0003726,4]
[311414410,1705078279730,-500.0,0.0003726,4]
[311414411,1705078279740,-500.0,0.0003726,4]
[311414412,1705078279750,-500.0,0.0003726,4]
[311414413,1705078279759,-548.99,0.0003726,4]
[311414414,1705078279770,-500.0,0.0003726,4]
[311414415,1705078279779,-409.21,0.0003726,4]
[311414416,1705078279790,-500.0,0.0003726,4]
[311414417,1705078279799,-500.0,0.0003726,4]
[311414418,1705078279808,-617.18,0.0003726,4]
[311414419,1705078279818,-500.0,0.0003726,4]
[311414420,1705078279828,-500.0,0.0003726,4]
[311414421,1705078279838,-588.39,0.0003726,4]
[311414422,1705078279848,-500.0,0.0003726,4]